[Event "2nd FIDE WCC Rapid G10"]
[Site "Minsk"]
[Date "2018.06.22"]
[Round "3"]
[White "Edithso, Samantha"]
[Black "Khamdamova, Afruza"]
[Result "1/2-1/2"]
[ECO "C47"]
[WhiteElo "1714"]
[BlackElo "1383"]
[Annotator "NA RC"]
[PlyCount "153"]
[EventDate "2018.06.22"]
[EventType "rapid"]
[EventCountry "BLR"]
[SourceTitle "playchess.com"]
[Source "ChessBase"]
[SourceQuality "1"]
[TimeControl "600+5"]

1. e4 {[%emt 0:00:00]} e5 {[%emt 0:00:01]} 2. Nf3 {[%emt 0:00:00]} Nf6 {[%emt 0:00:01]} 3. Nc3 {[%emt 0:00:01]} Nc6 {[%emt 0:00:01]} 4. Bc4 {[%emt 0:00:05]} Nxe4 {[%emt 0:00:02]} 5. Bxf7+ {[%emt 0:00:05]} Kxf7 {[%emt 0:00:03]} 6. Nxe4 {[%emt 0:00:04]} d5 {[%emt 0:00:02]} 7. Neg5+ {[%emt 0:00:37]} Kg8 {[%emt 0:00:01]} 8. d3 {[%emt 0:00:17]} h6 {[%emt 0:00:21]} 9. Nh3 {[%emt 0:01:25]} Bg4 {[%emt 0:00:25]} 10. Nhg1 {[%emt 0:00:05]} e4 {[%emt 0:00:05]} 11. dxe4 {[%emt 0:00:18]} dxe4 {[%emt 0:00:01]} 12. Qxd8 {[%emt 0:00:31]} Rxd8 {[%emt 0:00:02]} 13. Nd2 {[%emt 0:00:28]} Nd4 {[%emt 0:00:01]} 14. Rb1 {[%emt 0:00:19]} Nxc2+ {[%emt 0:00:01]} 15. Kf1 {[%emt 0:00:01]} Bb4 {[%emt 0:00:02]} 16. f3 {[%emt 0:00:31]} e3 {[%emt 0:00:41]} 17. Ne4 {[%emt 0:00:57]} Be6 {[%emt 0:00:14]} 18. b3 {[%emt 0:00:10]} c5 {[%emt 0:03:00]} 19. Ke2 {[%emt 0:00:14]} Bd7 {[%emt 0:01:06]} 20. Bxe3 {[%emt 0:00:19]} Bb5+ {[%emt 0:00:03]} 21. Kf2 {[%emt 0:00:01]} Nxe3 {[%emt 0:01:03]} 22. Kxe3 {[%emt 0:00:02]} Rd3+ {[%emt 0:00:01]} 23. Kf2 {[%emt 0:00:15]} Kh7 {[%emt 0:00:18]} 24. Ne2 {[%emt 0:00:05]} Rhd8 {[%emt 0:00:02]} 25. Rbc1 {[%emt 0:00:07]} b6 {[%emt 0:00:01]} 26. Nf4 {[%emt 0:00:09]} R3d7 {[%emt 0:00:18]} 27. Ra1 {[%emt 0:00:07]} c4 {[%emt 0:00:10]} 28. a3 {[%emt 0:00:10]} Bd2 {[%emt 0:00:15]} 29. bxc4 {[%emt 0:00:16]} Bxc4 {[%emt 0:00:13]} 30. Ne2 {[%emt 0:00:06]} b5 {[%emt 0:00:15]} 31. g4 {[%emt 0:00:14]} a5 {[%emt 0:00:04]} 32. h4 {[%emt 0:00:09]} b4 {[%emt 0:00:10]} 33. axb4 {[%emt 0:00:10]} axb4 {[%emt 0:00:01]} 34. g5 {[%emt 0:00:07]} b3 {[%emt 0:00:15]} 35. gxh6 {[%emt 0:00:03]} Bxh6 {[%emt 0:00:02]} 36. Rab1 {[%emt 0:00:35]} Rb8 {[%emt 0:00:05]} 37. Rb2 {[%emt 0:00:18]} Ra7 {[%emt 0:00:10]} 38. Rhb1 {[%emt 0:00:14]} Rba8 {[%emt 0:00:14]} 39. Nc5 {[%emt 0:00:16]} Ra2 {[%emt 0:00:03]} 40. Nxb3 {[%emt 0:00:33]} Rxb2 {[%emt 0:00:12]} 41. Rxb2 {[%emt 0:00:01]} Rb8 {[%emt 0:00:01]} 42. Ned4 {[%emt 0:00:06]} Bf4 {[%emt 0:00:12]} 43. Rb1 {[%emt 0:00:11]} Be5 {[%emt 0:00:01]} 44. Ke3 {[%emt 0:00:11]} Bxd4+ {[%emt 0:00:02]} 45. Kxd4 {[%emt 0:00:04]} Rxb3 {[%emt 0:00:01]} 46. Rg1 {[%emt 0:00:07]} Bf7 {[%emt 0:00:04]} 47. Ke4 {[%emt 0:00:03]} Rb4+ {[%emt 0:00:04]} 48. Kf5 {[%emt 0:00:04]} Rxh4 {[%emt 0:00:04]} 49. f4 {[%emt 0:00:04]} Bg6+ {[%emt 0:00:05]} 50. Rxg6 {[%emt 0:00:24]} Rxf4+ {[%emt 0:00:05]} 51. Kxf4 {[%emt 0:00:04]} Kxg6 {[%emt 0:00:01]} 52. Kg4 {[%emt 0:00:01]} Kf6 {[%emt 0:00:21]} 53. Kf4 {[%emt 0:00:01]} Ke6 {[%emt 0:00:20]} 54. Kg4 {[%emt 0:00:10]} Kf6 {[%emt 0:00:24]} 55. Kf4 {[%emt 0:00:01]} Kg6 {[%emt 0:00:06]} 56. Kg4 {[%emt 0:00:01]} Kf7 {[%emt 0:00:16]} 57. Kf5 {[%emt 0:00:02]} Kg8 {[%emt 0:00:05]} 58. Kg6 {[%emt 0:00:02]} Kh8 {[%emt 0:00:01]} 59. Kg5 {[%emt 0:00:02]} Kh7 {[%emt 0:00:04]} 60. Kh5 {[%emt 0:00:01]} g6+ {[%emt 0:00:07]} 61. Kg5 {[%emt 0:00:03]} Kg7 {[%emt 0:00:01]} 62. Kg4 {[%emt 0:00:01]} Kf6 {[%emt 0:00:02]} 63. Kf4 {[%emt 0:00:01]} g5+ {[%emt 0:00:01]} 64. Kg4 {[%emt 0:00:02]} Kg6 {[%emt 0:00:01]} 65. Kg3 {[%emt 0:00:01]} Kf5 {[%emt 0:00:02]} 66. Kf3 {[%emt 0:00:01]} Ke5 {[%emt 0:00:01]} 67. Kg3 {[%emt 0:00:13]} Kf5 {[%emt 0:00:20]} 68. Kf3 {[%emt 0:00:01]} Kf6 {[%emt 0:00:03]} 69. Kg4 {[%emt 0:00:06]} Kg6 {[%emt 0:00:01]} 70. Kg3 {[%emt 0:00:01]} Kf5 {[%emt 0:00:01]} 71. Kf3 {[%emt 0:00:01]} g4+ {[%emt 0:00:01]} 72. Kg3 {[%emt 0:00:01]} Kg5 {[%emt 0:00:01]} 73. Kg2 {[%emt 0:00:02]} Kf4 {[%emt 0:00:02]} 74. Kf2 {[%emt 0:00:01]} g3+ {[%emt 0:00:02]} 75. Kg2 {[%emt 0:00:01]} Kg4 {[%emt 0:00:01]} 76. Kg1 {[%emt 0:00:03]} Kf3 {[%emt 0:00:01]} 77. Kf1 {[%emt 0:00:05]} 1/2-1/2

[Event "2nd FIDE WCC Rapid G10"]
[Site "Minsk"]
[Date "2018.06.22"]
[Round "3"]
[White "Kleymenova, Valeria"]
[Black "Novikova, Daria"]
[Result "1-0"]
[ECO "D05"]
[WhiteElo "1669"]
[BlackElo "1341"]
[Annotator "NA RC"]
[PlyCount "111"]
[EventDate "2018.06.22"]
[EventType "rapid"]
[EventCountry "BLR"]
[SourceTitle "playchess.com"]
[Source "ChessBase"]
[SourceQuality "1"]
[TimeControl "600+5"]

1. d4 {[%emt 0:00:00]} d5 {[%emt 0:00:02]} 2. e3 {[%emt 0:00:00]} Nf6 {[%emt 0:00:09]} 3. Bd3 {[%emt 0:00:02]} e6 {[%emt 0:00:11]} 4. f4 {[%emt 0:00:02]} Bd6 {[%emt 0:00:02]} 5. Nf3 {[%emt 0:00:03]} Nbd7 {[%emt 0:00:06]} 6. O-O {[%emt 0:00:04]} b6 {[%emt 0:00:02]} 7. Ne5 {[%emt 0:00:05]} Bb7 {[%emt 0:00:02]} 8. Nd2 {[%emt 0:00:10]} O-O {[%emt 0:00:02]} 9. Qe2 {[%emt 0:00:09]} Ne4 {[%emt 0:00:05]} 10. c3 {[%emt 0:00:09]} f6 {[%emt 0:00:11]} 11. Nxd7 {[%emt 0:00:09]} Qxd7 {[%emt 0:00:03]} 12. Nf3 {[%emt 0:01:04]} Qf7 {[%emt 0:02:40]} 13. Bd2 {[%emt 0:00:35]} Rac8 {[%emt 0:00:13]} 14. Be1 {[%emt 0:00:27]} c5 {[%emt 0:00:58]} 15. Bh4 {[%emt 0:00:20]} Qg6 {[%emt 0:01:29]} 16. Bb5 {[%emt 0:01:17]} Rc7 {[%emt 0:00:22]} 17. Nd2 {[%emt 0:01:10]} cxd4 {[%emt 0:01:15]} 18. exd4 {[%emt 0:01:09]} Qh6 {[%emt 0:00:35]} 19. Nxe4 {[%emt 0:01:06]} dxe4 {[%emt 0:00:03]} 20. Bg3 {[%emt 0:00:51]} f5 {[%emt 0:00:24]} 21. Rad1 {[%emt 0:00:32]} Rfc8 {[%emt 0:00:44]} 22. Qe3 {[%emt 0:00:19]} Bd5 {[%emt 0:00:19]} 23. a3 {[%emt 0:00:31]} Bb3 {[%emt 0:00:43]} 24. Rc1 {[%emt 0:00:07]} Bd5 {[%emt 0:00:34]} 25. Qe2 {[%emt 0:00:16]} Qf6 {[%emt 0:00:34]} 26. Rfd1 {[%emt 0:00:07]} Bc4 {[%emt 0:00:17]} 27. Bxc4 {[%emt 0:00:03]} Rxc4 {[%emt 0:00:01]} 28. Qe3 {[%emt 0:00:18]} b5 {[%emt 0:00:11]} 29. Rd2 {[%emt 0:00:17]} a5 {[%emt 0:00:05]} 30. b3 {[%emt 0:00:15]} R4c7 {[%emt 0:00:03]} 31. Rdc2 {[%emt 0:00:12]} Bxa3 {[%emt 0:00:04]} 32. Ra1 {[%emt 0:00:03]} Bd6 {[%emt 0:00:01]} 33. Rxa5 {[%emt 0:00:05]} b4 {[%emt 0:00:02]} 34. c4 {[%emt 0:00:03]} Rc6 {[%emt 0:00:14]} 35. Rca2 {[%emt 0:00:10]} Bc7 {[%emt 0:00:05]} 36. R5a4 {[%emt 0:00:05]} Bb6 {[%emt 0:00:03]} 37. Bf2 {[%emt 0:00:14]} Rd8 {[%emt 0:00:04]} 38. c5 {[%emt 0:00:06]} Bc7 {[%emt 0:00:03]} 39. Ra7 {[%emt 0:00:10]} Qh6 {[%emt 0:00:07]} 40. g3 {[%emt 0:00:10]} Qf6 {[%emt 0:00:04]} 41. R7a4 {[%emt 0:00:03]} Qf8 {[%emt 0:00:11]} 42. Rxb4 {[%emt 0:00:03]} Qe7 {[%emt 0:00:03]} 43. Rba4 {[%emt 0:00:03]} Qd7 {[%emt 0:00:06]} 44. b4 {[%emt 0:00:02]} Qc8 45. b5 {[%emt 0:00:02]} Rxc5 {[%emt 0:00:10]} 46. dxc5 {[%emt 0:00:02]} Rd1+ {[%emt 0:00:01]} 47. Kg2 {[%emt 0:00:02]} Bb8 {[%emt 0:00:03]} 48. c6 {[%emt 0:00:04]} Rb1 {[%emt 0:00:02]} 49. Ra5 {[%emt 0:00:08]} h6 {[%emt 0:00:07]} 50. Qc5 {[%emt 0:00:08]} Kh7 {[%emt 0:00:03]} 51. b6 {[%emt 0:00:01]} e3 {[%emt 0:00:09]} 52. Bxe3 {[%emt 0:00:04]} Re1 {[%emt 0:00:04]} 53. Bf2 {[%emt 0:00:08]} Rd1 {[%emt 0:00:03]} 54. Qb5 {[%emt 0:00:06]} Rd5 {[%emt 0:00:04]} 55. Qc4 {[%emt 0:00:03]} Rd6 {[%emt 0:00:02]} 56. Rc5 {[%emt 0:00:02]} 1-0

[Event "2nd FIDE WCC Rapid G10"]
[Site "Minsk"]
[Date "2018.06.22"]
[Round "3"]
[White "Zhapova, Yana"]
[Black "Gupta, Sara"]
[Result "1-0"]
[ECO "B70"]
[WhiteElo "1597"]
[BlackElo "1525"]
[Annotator "NA RC"]
[PlyCount "87"]
[EventDate "2018.06.22"]
[EventType "rapid"]
[EventCountry "BLR"]
[SourceTitle "playchess.com"]
[Source "ChessBase"]
[SourceQuality "1"]
[TimeControl "600+5"]

1. e4 {[%emt 0:00:00]} c5 {[%emt 0:00:01]} 2. Nf3 {[%emt 0:00:00]} d6 {[%emt 0:00:01]} 3. d4 {[%emt 0:00:00]} cxd4 {[%emt 0:00:01]} 4. Nxd4 {[%emt 0:00:00]} Nf6 {[%emt 0:00:01]} 5. Nc3 {[%emt 0:00:00]} g6 {[%emt 0:00:01]} 6. Be2 {[%emt 0:00:14]} Bg7 {[%emt 0:00:02]} 7. O-O {[%emt 0:00:03]} O-O {[%emt 0:00:04]} 8. Re1 {[%emt 0:00:01]} Nc6 {[%emt 0:00:07]} 9. Nb3 {[%emt 0:00:01]} Be6 {[%emt 0:00:16]} 10. Bg5 {[%emt 0:00:09]} a6 {[%emt 0:00:26]} 11. Bf1 {[%emt 0:00:02]} Nd7 {[%emt 0:00:59]} 12. Rb1 {[%emt 0:01:15]} Nde5 {[%emt 0:00:15]} 13. Nd5 {[%emt 0:00:19]} Re8 {[%emt 0:01:11]} 14. f4 {[%emt 0:00:49]} Nd7 {[%emt 0:00:48]} 15. Kh1 {[%emt 0:00:07]} Rc8 {[%emt 0:00:29]} 16. c3 {[%emt 0:00:06]} Nb6 {[%emt 0:00:18]} 17. Qf3 {[%emt 0:00:50]} Bxd5 {[%emt 0:01:04]} 18. exd5 {[%emt 0:00:10]} Nb8 {[%emt 0:00:05]} 19. Re3 {[%emt 0:01:06]} N8d7 {[%emt 0:00:11]} 20. Rbe1 {[%emt 0:00:04]} Nf6 {[%emt 0:00:10]} 21. Bxf6 {[%emt 0:00:12]} Bxf6 {[%emt 0:00:11]} 22. Bd3 {[%emt 0:00:09]} Nc4 {[%emt 0:00:25]} 23. Bxc4 {[%emt 0:00:58]} Rxc4 {[%emt 0:00:01]} 24. Nd2 {[%emt 0:00:13]} Rc5 {[%emt 0:00:14]} 25. Ne4 {[%emt 0:00:11]} Rc8 {[%emt 0:00:12]} 26. Nxf6+ exf6 {[%emt 0:00:02]} 27. Rxe8+ {[%emt 0:00:04]} Qxe8 {[%emt 0:00:01]} 28. Rxe8+ {[%emt 0:00:02]} Rxe8 {[%emt 0:00:02]} 29. h3 {[%emt 0:00:12]} Re1+ {[%emt 0:00:09]} 30. Kh2 {[%emt 0:00:01]} Rb1 {[%emt 0:00:03]} 31. b4 {[%emt 0:00:09]} Rb2 {[%emt 0:00:03]} 32. a4 Ra2 {[%emt 0:00:03]} 33. a5 {[%emt 0:00:05]} Ra3 {[%emt 0:00:01]} 34. Qe3 {[%emt 0:00:06]} Kf8 {[%emt 0:00:06]} 35. Qb6 {[%emt 0:00:19]} Rxc3 {[%emt 0:00:06]} 36. Qxd6+ {[%emt 0:00:01]} Kg7 {[%emt 0:00:07]} 37. Qb6 {[%emt 0:00:03]} Rc4 {[%emt 0:00:06]} 38. d6 {[%emt 0:00:08]} Rxf4 {[%emt 0:00:06]} 39. d7 {[%emt 0:00:01]} Rd4 {[%emt 0:00:01]} 40. Qxd4 {[%emt 0:00:02]} Kf8 {[%emt 0:00:04]} 41. d8=Q+ {[%emt 0:00:02]} Kg7 {[%emt 0:00:01]} 42. Q4xf6+ {[%emt 0:00:04]} Kh6 {[%emt 0:00:01]} 43. Qf8+ {[%emt 0:00:05]} Kh5 {[%emt 0:00:01]} 44. g4# {[%emt 0:00:01]} 1-0

[Event "2nd FIDE WCC Rapid G10"]
[Site "Minsk"]
[Date "2018.06.22"]
[Round "3"]
[White "Szczotka, Klara"]
[Black "Svergina, Sofya"]
[Result "1-0"]
[ECO "C03"]
[WhiteElo "1465"]
[BlackElo "1316"]
[Annotator "NA RC"]
[PlyCount "115"]
[EventDate "2018.06.22"]
[EventType "rapid"]
[EventCountry "BLR"]
[SourceTitle "playchess.com"]
[Source "ChessBase"]
[SourceQuality "1"]
[TimeControl "600+5"]

1. e4 {[%emt 0:00:00]} e6 {[%emt 0:00:01]} 2. d4 {[%emt 0:00:00]} d5 {[%emt 0:00:01]} 3. Nd2 dxe4 {[%emt 0:00:03]} 4. Nxe4 {[%emt 0:00:01]} Nf6 {[%emt 0:00:17]} 5. Nc3 {[%emt 0:00:22]} Nc6 {[%emt 0:00:14]} 6. Nf3 {[%emt 0:00:03]} Be7 {[%emt 0:00:25]} 7. Be3 {[%emt 0:00:25]} O-O {[%emt 0:00:03]} 8. Qd2 {[%emt 0:00:08]} b6 {[%emt 0:00:19]} 9. h3 {[%emt 0:00:34]} Bb7 {[%emt 0:00:05]} 10. Be2 {[%emt 0:00:24]} Re8 {[%emt 0:00:28]} 11. O-O {[%emt 0:00:05]} h6 {[%emt 0:00:07]} 12. Rad1 {[%emt 0:00:14]} a6 {[%emt 0:01:16]} 13. a3 {[%emt 0:00:15]} Bd6 {[%emt 0:00:17]} 14. Rfe1 {[%emt 0:03:00]} Ne7 {[%emt 0:01:37]} 15. Ne5 {[%emt 0:00:33]} Bxe5 {[%emt 0:00:08]} 16. dxe5 {[%emt 0:00:01]} Qxd2 {[%emt 0:00:06]} 17. Rxd2 {[%emt 0:00:05]} Nfd5 {[%emt 0:00:10]} 18. Bf3 {[%emt 0:00:34]} Red8 {[%emt 0:00:34]} 19. Red1 {[%emt 0:00:35]} Rab8 {[%emt 0:01:23]} 20. Nxd5 {[%emt 0:00:16]} exd5 {[%emt 0:00:17]} 21. c4 {[%emt 0:00:21]} Nc6 {[%emt 0:00:37]} 22. Bxd5 {[%emt 0:00:45]} Kf8 {[%emt 0:00:26]} 23. Bxc6 {[%emt 0:00:13]} Bxc6 {[%emt 0:00:03]} 24. Rxd8+ {[%emt 0:00:01]} Rxd8 {[%emt 0:00:01]} 25. Rxd8+ {[%emt 0:00:01]} Ke7 {[%emt 0:00:01]} 26. Rd2 {[%emt 0:00:04]} Bd7 {[%emt 0:00:15]} 27. Rxd7+ {[%emt 0:00:06]} Kxd7 {[%emt 0:00:02]} 28. Kf1 {[%emt 0:00:01]} Ke6 {[%emt 0:00:01]} 29. f4 {[%emt 0:00:01]} Kf5 {[%emt 0:00:20]} 30. Ke2 {[%emt 0:00:06]} Ke4 {[%emt 0:00:19]} 31. b4 {[%emt 0:00:11]} c5 {[%emt 0:00:52]} 32. bxc5 {[%emt 0:00:05]} bxc5 {[%emt 0:00:02]} 33. Bxc5 {[%emt 0:00:03]} Kxf4 {[%emt 0:00:02]} 34. Bd6 {[%emt 0:00:01]} Ke4 {[%emt 0:00:03]} 35. c5 {[%emt 0:00:02]} Kd5 {[%emt 0:00:01]} 36. Kd3 {[%emt 0:00:02]} f6 {[%emt 0:00:19]} 37. exf6 {[%emt 0:00:02]} gxf6 {[%emt 0:00:02]} 38. Kc3 {[%emt 0:00:05]} a5 {[%emt 0:00:08]} 39. Kb3 {[%emt 0:00:01]} f5 {[%emt 0:00:12]} 40. Ka4 {[%emt 0:00:04]} h5 {[%emt 0:00:06]} 41. Kxa5 {[%emt 0:00:03]} Kc6 {[%emt 0:00:03]} 42. Kb4 {[%emt 0:00:01]} Kb7 {[%emt 0:00:06]} 43. a4 {[%emt 0:00:02]} Kc6 {[%emt 0:00:06]} 44. a5 {[%emt 0:00:01]} Kb7 {[%emt 0:00:01]} 45. Kc4 {[%emt 0:00:04]} Kc6 {[%emt 0:00:26]} 46. a6 {[%emt 0:00:03]} Kd7 {[%emt 0:00:06]} 47. a7 {[%emt 0:00:01]} Ke6 {[%emt 0:00:04]} 48. a8=Q {[%emt 0:00:04]} f4 {[%emt 0:00:03]} 49. Qe4+ {[%emt 0:00:01]} Kf6 {[%emt 0:00:01]} 50. Qxf4+ {[%emt 0:00:02]} Ke6 {[%emt 0:00:03]} 51. Qe5+ {[%emt 0:00:01]} Kf7 {[%emt 0:00:01]} 52. Qxh5+ {[%emt 0:00:03]} Kf6 {[%emt 0:00:05]} 53. Qe5+ {[%emt 0:00:05]} Kg6 {[%emt 0:00:04]} 54. Bb8 {[%emt 0:00:06]} Kf7 {[%emt 0:00:01]} 55. Kd5 {[%emt 0:00:01]} Kg6 {[%emt 0:00:02]} 56. Ke6 {[%emt 0:00:04]} Kh7 {[%emt 0:00:01]} 57. Qg5 {[%emt 0:00:07]} Kh8 {[%emt 0:00:02]} 58. Be5+ 1-0

[Event "2nd FIDE WCC Rapid G10"]
[Site "Minsk"]
[Date "2018.06.22"]
[Round "3"]
[White "Bykovskikh, Ekaterina"]
[Black "Marchenko, Yelyzaveta"]
[Result "0-1"]
[ECO "C00"]
[WhiteElo "1360"]
[BlackElo "1510"]
[Annotator "NA RC"]
[PlyCount "97"]
[EventDate "2018.06.22"]
[EventType "rapid"]
[EventCountry "BLR"]
[SourceTitle "playchess.com"]
[Source "ChessBase"]
[SourceQuality "1"]
[TimeControl "600+5"]

1. e4 {[%emt 0:00:00]} e6 {[%emt 0:00:01]} 2. d4 {[%emt 0:00:00]} b6 {[%emt 0:00:01]} 3. Nd2 {[%emt 0:00:02]} Bb7 {[%emt 0:00:02]} 4. Ngf3 {[%emt 0:00:04]} Nf6 {[%emt 0:00:01]} 5. e5 {[%emt 0:00:06]} Ne4 {[%emt 0:00:03]} 6. Nxe4 {[%emt 0:00:04]} Bxe4 {[%emt 0:00:02]} 7. Bd3 {[%emt 0:00:05]} Bb7 {[%emt 0:00:01]} 8. O-O {[%emt 0:00:07]} Be7 {[%emt 0:00:01]} 9. Be3 {[%emt 0:00:08]} O-O {[%emt 0:00:12]} 10. c4 {[%emt 0:00:04]} d6 {[%emt 0:00:21]} 11. Bf4 {[%emt 0:00:37]} Nd7 {[%emt 0:00:30]} 12. exd6 {[%emt 0:00:15]} cxd6 {[%emt 0:00:02]} 13. Qc2 {[%emt 0:00:16]} Nf6 {[%emt 0:00:08]} 14. Kh1 {[%emt 0:00:25]} d5 {[%emt 0:00:23]} 15. cxd5 {[%emt 0:00:31]} Qxd5 {[%emt 0:00:20]} 16. Be5 {[%emt 0:00:13]} Rac8 {[%emt 0:00:20]} 17. Qe2 {[%emt 0:00:04]} Rfd8 {[%emt 0:01:03]} 18. a3 {[%emt 0:00:45]} Nd7 {[%emt 0:01:07]} 19. Bg3 {[%emt 0:00:58]} Bf6 {[%emt 0:00:02]} 20. Rfe1 {[%emt 0:00:38]} Bxd4 {[%emt 0:01:03]} 21. Be4 {[%emt 0:00:35]} Qxe4 {[%emt 0:00:01]} 22. Qxe4 {[%emt 0:00:07]} Bxe4 {[%emt 0:00:02]} 23. Rxe4 {[%emt 0:00:05]} Bxb2 {[%emt 0:00:05]} 24. Rd1 {[%emt 0:00:35]} Bf6 {[%emt 0:00:06]} 25. Re3 {[%emt 0:00:32]} Nc5 {[%emt 0:00:03]} 26. Ree1 {[%emt 0:00:23]} Kf8 {[%emt 0:00:19]} 27. h3 {[%emt 0:00:54]} Nd3 {[%emt 0:00:22]} 28. Rf1 {[%emt 0:00:35]} Nc5 {[%emt 0:00:06]} 29. Kg1 {[%emt 0:00:10]} Ke7 {[%emt 0:00:01]} 30. Rfe1 {[%emt 0:00:16]} Rd7 {[%emt 0:00:39]} 31. Rxd7+ {[%emt 0:00:12]} Nxd7 {[%emt 0:00:01]} 32. Rd1 {[%emt 0:00:07]} Rc3 {[%emt 0:00:16]} 33. a4 {[%emt 0:00:27]} Rc4 {[%emt 0:00:20]} 34. a5 {[%emt 0:00:26]} bxa5 {[%emt 0:00:05]} 35. Kf1 {[%emt 0:00:11]} a4 {[%emt 0:00:01]} 36. Ke2 {[%emt 0:00:22]} Bb2 {[%emt 0:00:19]} 37. Rd2 {[%emt 0:00:18]} a3 {[%emt 0:00:01]} 38. Bd6+ {[%emt 0:00:36]} Ke8 {[%emt 0:00:01]} 39. Bxa3 {[%emt 0:00:25]} Bxa3 {[%emt 0:00:01]} 40. Rxd7 {[%emt 0:00:16]} Kxd7 {[%emt 0:00:07]} 41. Ne5+ {[%emt 0:00:02]} Ke7 {[%emt 0:00:07]} 42. Nxc4 {[%emt 0:00:02]} Bc5 {[%emt 0:00:04]} 43. f3 {[%emt 0:00:03]} Bb4 {[%emt 0:00:03]} 44. Kd3 {[%emt 0:00:01]} a5 {[%emt 0:00:06]} 45. Kc2 {[%emt 0:00:02]} Kf6 {[%emt 0:00:10]} 46. Kb3 {[%emt 0:00:08]} Kf5 {[%emt 0:00:02]} 47. g3 {[%emt 0:00:17]} e5 {[%emt 0:00:14]} 48. Ne3+ {[%emt 0:00:07]} Ke6 {[%emt 0:00:05]} 49. Nc2 {[%emt 0:00:00]} 0-1

[Event "2nd FIDE WCC Rapid G10"]
[Site "Minsk"]
[Date "2018.06.22"]
[Round "3"]
[White "Matveeva, Kseniia"]
[Black "Shukhman, Anna"]
[Result "0-1"]
[ECO "E77"]
[WhiteElo "1359"]
[BlackElo "1577"]
[Annotator "NA RC"]
[PlyCount "82"]
[EventDate "2018.06.22"]
[EventType "rapid"]
[EventCountry "BLR"]
[SourceTitle "playchess.com"]
[Source "ChessBase"]
[SourceQuality "1"]
[TimeControl "600+5"]

1. d4 {[%emt 0:00:00]} Nf6 {[%emt 0:00:02]} 2. c4 {[%emt 0:00:00]} g6 {[%emt 0:00:01]} 3. Nc3 {[%emt 0:00:00]} Bg7 {[%emt 0:00:01]} 4. e4 {[%emt 0:00:00]} d6 {[%emt 0:00:01]} 5. f4 {[%emt 0:00:00]} O-O {[%emt 0:00:03]} 6. Nf3 {[%emt 0:00:02]} c5 {[%emt 0:00:01]} 7. d5 {[%emt 0:00:01]} e6 {[%emt 0:00:09]} 8. dxe6 {[%emt 0:00:02]} fxe6 {[%emt 0:00:04]} 9. Bd3 {[%emt 0:00:01]} Nc6 {[%emt 0:00:02]} 10. O-O {[%emt 0:00:02]} a6 {[%emt 0:01:46]} 11. a3 {[%emt 0:00:33]} Qc7 {[%emt 0:02:11]} 12. Ng5 {[%emt 0:01:27]} Nd4 {[%emt 0:01:12]} 13. Qe1 {[%emt 0:00:29]} Bd7 {[%emt 0:00:38]} 14. Be3 {[%emt 0:00:30]} h6 {[%emt 0:00:26]} 15. Nf3 {[%emt 0:00:04]} Ng4 {[%emt 0:00:18]} 16. Bxd4 {[%emt 0:00:15]} cxd4 {[%emt 0:00:01]} 17. Ne2 {[%emt 0:00:01]} Ne3 {[%emt 0:00:07]} 18. Rf2 {[%emt 0:00:03]} e5 {[%emt 0:00:05]} 19. Nd2 {[%emt 0:01:12]} Rac8 {[%emt 0:00:55]} 20. Nf1 {[%emt 0:00:22]} Qb6 {[%emt 0:00:28]} 21. Rb1 {[%emt 0:00:44]} Nxc4 {[%emt 0:00:12]} 22. Bxc4+ {[%emt 0:00:01]} Rxc4 {[%emt 0:00:03]} 23. Nd2 {[%emt 0:00:37]} Rcc8 {[%emt 0:00:03]} 24. Rf3 {[%emt 0:00:06]} d3+ {[%emt 0:00:04]} 25. Kh1 {[%emt 0:00:01]} dxe2 {[%emt 0:00:03]} 26. Qxe2 {[%emt 0:00:01]} exf4 {[%emt 0:00:04]} 27. Qf1 {[%emt 0:00:09]} g5 {[%emt 0:00:10]} 28. Nc4 {[%emt 0:00:20]} Qd4 {[%emt 0:00:07]} 29. b3 {[%emt 0:00:07]} Bb5 {[%emt 0:00:21]} 30. Rd3 {[%emt 0:00:16]} Bxc4 {[%emt 0:00:17]} 31. bxc4 {[%emt 0:00:02]} Qxe4 {[%emt 0:00:06]} 32. Rxd6 {[%emt 0:00:24]} Rfd8 {[%emt 0:00:16]} 33. Rxd8+ {[%emt 0:00:09]} Rxd8 {[%emt 0:00:01]} 34. h3 {[%emt 0:00:04]} Rd2 {[%emt 0:00:28]} 35. Re1 {[%emt 0:00:08]} Qc6 {[%emt 0:00:10]} 36. Rc1 {[%emt 0:00:44]} f3 {[%emt 0:00:36]} 37. gxf3 {[%emt 0:00:21]} Be5 {[%emt 0:00:02]} 38. Re1 {[%emt 0:00:08]} Rh2+ {[%emt 0:00:04]} 39. Kg1 {[%emt 0:00:01]} Qc5+ {[%emt 0:00:01]} 40. Re3 {[%emt 0:00:03]} Qxe3+ {[%emt 0:00:02]} 41. Qf2 {[%emt 0:00:00]} Qxf2# {[%emt 0:00:00]} 0-1

[Event "2nd FIDE WCC Rapid G10"]
[Site "Minsk"]
[Date "2018.06.22"]
[Round "3"]
[White "Kobak, Polina"]
[Black "Darmaeva, Nomina"]
[Result "1/2-1/2"]
[ECO "A53"]
[WhiteElo "1336"]
[BlackElo "1388"]
[Annotator "NA RC"]
[PlyCount "99"]
[EventDate "2018.06.22"]
[EventType "rapid"]
[EventCountry "BLR"]
[SourceTitle "playchess.com"]
[Source "ChessBase"]
[SourceQuality "1"]
[TimeControl "600+5"]

1. d4 {[%emt 0:00:00]} Nf6 {[%emt 0:00:05]} 2. c4 {[%emt 0:00:00]} d6 {[%emt 0:00:01]} 3. Nc3 {[%emt 0:00:06]} Nbd7 {[%emt 0:00:01]} 4. e4 {[%emt 0:00:06]} e5 {[%emt 0:00:04]} 5. Nge2 {[%emt 0:00:14]} Be7 {[%emt 0:00:04]} 6. d5 {[%emt 0:00:13]} c5 {[%emt 0:00:04]} 7. Ng3 {[%emt 0:00:20]} Nb6 {[%emt 0:01:37]} 8. Bd3 {[%emt 0:00:37]} O-O {[%emt 0:00:21]} 9. O-O {[%emt 0:00:06]} Bd7 {[%emt 0:00:19]} 10. f4 {[%emt 0:00:24]} exf4 {[%emt 0:02:36]} 11. Bxf4 {[%emt 0:00:07]} Ng4 {[%emt 0:00:15]} 12. Nf5 {[%emt 0:00:41]} Ne5 {[%emt 0:00:30]} 13. Bxe5 {[%emt 0:00:49]} dxe5 {[%emt 0:00:02]} 14. Nxe7+ {[%emt 0:00:48]} Qxe7 {[%emt 0:00:04]} 15. a4 {[%emt 0:00:27]} a5 {[%emt 0:00:43]} 16. Nb5 {[%emt 0:00:10]} Qg5 {[%emt 0:00:37]} 17. Qf3 {[%emt 0:00:55]} h5 {[%emt 0:00:37]} 18. Kh1 {[%emt 0:00:20]} Bg4 {[%emt 0:00:06]} 19. Qg3 {[%emt 0:00:20]} h4 {[%emt 0:00:07]} 20. Qf2 {[%emt 0:00:26]} Rac8 {[%emt 0:01:24]} 21. Nd6 {[%emt 0:00:21]} Rc7 {[%emt 0:00:04]} 22. Nf5 {[%emt 0:00:37]} Bxf5 23. Qxf5 {[%emt 0:00:23]} Qxf5 {[%emt 0:01:01]} 24. Rxf5 {[%emt 0:00:05]} f6 {[%emt 0:00:01]} 25. Rh5 {[%emt 0:00:11]} g5 {[%emt 0:00:04]} 26. g3 {[%emt 0:00:32]} hxg3 {[%emt 0:00:18]} 27. hxg3 {[%emt 0:00:01]} Kg7 {[%emt 0:00:15]} 28. Kg2 {[%emt 0:00:09]} Kg6 {[%emt 0:00:01]} 29. g4 {[%emt 0:00:13]} Rff7 {[%emt 0:00:48]} 30. b3 {[%emt 0:00:27]} Rh7 {[%emt 0:00:04]} 31. Rah1 {[%emt 0:00:20]} Rxh5 {[%emt 0:00:09]} 32. gxh5+ {[%emt 0:00:02]} Kh6 {[%emt 0:00:01]} 33. Kg3 {[%emt 0:00:08]} Nd7 {[%emt 0:00:02]} 34. Kg4 {[%emt 0:00:09]} Nf8 {[%emt 0:00:03]} 35. Be2 {[%emt 0:00:24]} Rd7 {[%emt 0:00:04]} 36. Rf1 {[%emt 0:00:04]} Rd6 {[%emt 0:00:04]} 37. Kg3 {[%emt 0:01:07]} Rb6 {[%emt 0:00:03]} 38. Rf3 {[%emt 0:00:09]} Nd7 {[%emt 0:00:10]} 39. Rd3 {[%emt 0:00:10]} Rd6 {[%emt 0:00:03]} 40. Bg4 {[%emt 0:00:06]} Nf8 {[%emt 0:00:02]} 41. Rd1 {[%emt 0:00:10]} Nd7 {[%emt 0:00:04]} 42. Bf5 {[%emt 0:00:07]} Nf8 {[%emt 0:00:03]} 43. Kg4 {[%emt 0:00:04]} b6 {[%emt 0:00:02]} 44. Rh1 {[%emt 0:00:09]} Nd7 {[%emt 0:00:04]} 45. Rf1 {[%emt 0:00:05]} Nf8 {[%emt 0:00:03]} 46. Rf2 {[%emt 0:00:01]} Kg7 {[%emt 0:00:17]} 47. Rh2 {[%emt 0:00:05]} Kh6 {[%emt 0:00:01]} 48. Rf2 {[%emt 0:00:01]} Kg7 {[%emt 0:00:01]} 49. Rh2 {[%emt 0:00:19]} Kh6 {[%emt 0:00:01]} 50. Rf2 {[%emt 0:00:04]} 1/2-1/2